[Event "8th RTU Open 2018"]
[Site "Riga"]
[Date "2018.08.08"]
[Round "4"]
[White "Sorensen, Hampus"]
[Black "Saveliev, Alexei"]
[Result "1/2-1/2"]
[ECO "E12"]
[WhiteElo "2267"]
[BlackElo "2382"]
[Annotator "NA"]
[PlyCount "85"]
[EventDate "2018.08.06"]
[EventType "swiss"]
[EventCountry "LAT"]
[SourceTitle "playchess.com"]
[Source "ChessBase"]
[SourceQuality "1"]
[TimeControl "5400+30"]

1. d4 {[%emt 0:00:00]} Nf6 {[%emt 0:00:00]} 2. c4 {[%emt 0:00:38]} e6 {[%emt 0:00:00]} 3. Nf3 {[%emt 0:00:33]} b6 {[%emt 0:00:00]} 4. a3 {[%emt 0:00:54]} Bb7 {[%emt 0:00:49]} 5. Nc3 {[%emt 0:01:00]} Be7 {[%emt 0:01:37]} 6. Qc2 {[%emt 0:04:36]} c5 {[%emt 0:00:33]} 7. e4 {[%emt 0:03:01]} cxd4 {[%emt 0:00:08]} 8. Nxd4 {[%emt 0:00:06]} d6 {[%emt 0:00:04]} 9. Be2 {[%emt 0:05:12]} O-O {[%emt 0:00:10]} 10. O-O {[%emt 0:03:05]} a6 {[%emt 0:05:36]} 11. Be3 {[%emt 0:06:11]} Qc7 {[%emt 0:00:33]} 12. f3 {[%emt 0:08:44]} Nbd7 {[%emt 0:04:41]} 13. Rac1 {[%emt 0:03:01]} Rac8 {[%emt 0:02:33]} 14. Qb1 {[%emt 0:03:59]} Qb8 {[%emt 0:01:24]} 15. b4 {[%emt 0:02:13]} Rfe8 {[%emt 0:00:50]} 16. Rfe1 {[%emt 0:06:21]} Bd8 {[%emt 0:03:15]} 17. Kh1 {[%emt 0:09:57]} d5 {[%emt 0:10:39]} 18. cxd5 {[%emt 0:11:03]} exd5 {[%emt 0:00:28]} 19. Bd3 {[%emt 0:01:14]} dxe4 {[%emt 0:02:41]} 20. Nxe4 {[%emt 0:03:30]} Nxe4 {[%emt 0:00:37]} 21. Bxe4 {[%emt 0:00:17]} Bxe4 {[%emt 0:00:37]} 22. fxe4 {[%emt 0:03:33]} Rxc1 {[%emt 0:02:27]} 23. Qxc1 {[%emt 0:01:55]} Rxe4 {[%emt 0:08:09]} 24. Nc6 {[%emt 0:04:32]} Qc7 {[%emt 0:00:18]} 25. Bxb6 {[%emt 0:04:24]} Rxe1+ {[%emt 0:05:53]} 26. Qxe1 {[%emt 0:00:11]} Qxb6 {[%emt 0:00:33]} 27. Qe8+ {[%emt 0:00:16]} Nf8 {[%emt 0:00:01]} 28. Nxd8 {[%emt 0:00:10]} Qf6 {[%emt 0:00:07]} 29. h3 {[%emt 0:00:48]} g5 {[%emt 0:06:04]} 30. Nc6 {[%emt 0:02:24]} Qf1+ {[%emt 0:04:18]} 31. Kh2 {[%emt 0:00:01]} Qf4+ {[%emt 0:00:11]} 32. Kh1 {[%emt 0:00:19]} h5 {[%emt 0:02:52]} 33. Qe1 {[%emt 0:06:40]} Ne6 {[%emt 0:04:06]} 34. Ne7+ {[%emt 0:02:01]} Kg7 {[%emt 0:03:58]} 35. Qa1+ {[%emt 0:00:13]} f6 {[%emt 0:02:00]} 36. Qb1 {[%emt 0:00:38]} Nd4 {[%emt 0:07:08]} 37. Qg6+ {[%emt 0:01:15]} Kf8 {[%emt 0:00:04]} 38. Nd5 {[%emt 0:00:17]} Qf1+ {[%emt 0:00:08]} 39. Kh2 {[%emt 0:00:02]} Nf3+ {[%emt 0:00:10]} 40. gxf3 {[%emt 0:00:16]} Qf2+ {[%emt 0:00:03]} 41. Kh1 {[%emt 0:00:02]} Qf1+ {[%emt 0:00:43]} 42. Kh2 {[%emt 0:00:01]} Qf2+ {[%emt 0:00:06]} 43. Kh1 {[%emt 0:00:06]} 1/2-1/2

[Event "8th RTU Open 2018"]
[Site "Riga"]
[Date "2018.08.08"]
[Round "4"]
[White "Stauskas, Lukas"]
[Black "Chekletsov, Ilya"]
[Result "0-1"]
[ECO "E17"]
[WhiteElo "2256"]
[BlackElo "2379"]
[Annotator "NA"]
[PlyCount "68"]
[EventDate "2018.08.06"]
[EventType "swiss"]
[EventCountry "LAT"]
[SourceTitle "playchess.com"]
[Source "ChessBase"]
[SourceQuality "1"]
[TimeControl "5400+30"]

1. Nf3 Nf6 2. c4 e6 3. d4 b6 4. g3 Bb7 5. Bg2 Be7 6. O-O O-O 7. Re1 Na6 8. Ne5 d5 9. cxd5 exd5 10. Nc3 c5 11. dxc5 Nxc5 12. Nb5 Ne6 13. Be3 Bc5 14. Nd4 Qd6 15. f4 Rfe8 16. Rc1 Rac8 17. Qd3 Nxd4 18. Bxd4 Ba6 19. Bxc5 bxc5 20. Qa3 Qb6 21. e3 Red8 22. Red1 Bb5 23. g4 Be2 24. Rd2 Bxg4 25. Nxg4 Nxg4 26. Rxd5 Rxd5 27. Bxd5 Qh6 28. Rc2 Qg6 29. f5 Qg5 30. Rxc5 Nxe3+ 31. Kh1 Rd8 32. Qb3 Kh8 33. Bf3 Qf4 34. Bg2 h6 0-1

[Event "8th RTU Open 2018"]
[Site "Riga"]
[Date "2018.08.08"]
[Round "4"]
[White "Pulkkinen, Kari"]
[Black "Nikitenko, Mihail"]
[Result "1-0"]
[ECO "C92"]
[WhiteElo "2242"]
[BlackElo "2374"]
[Annotator "NA"]
[PlyCount "97"]
[EventDate "2018.08.06"]
[EventType "swiss"]
[EventCountry "LAT"]
[SourceTitle "playchess.com"]
[Source "ChessBase"]
[SourceQuality "1"]
[TimeControl "5400+30"]

1. e4 {[%emt 0:00:00]} e5 {[%emt 0:00:00]} 2. Nf3 {[%emt 0:00:00]} Nc6 {[%emt 0:00:00]} 3. Bb5 {[%emt 0:00:01]} a6 {[%emt 0:00:00]} 4. Ba4 {[%emt 0:00:07]} Nf6 {[%emt 0:00:00]} 5. O-O {[%emt 0:00:12]} Be7 {[%emt 0:00:00]} 6. Re1 {[%emt 0:00:14]} b5 {[%emt 0:00:01]} 7. Bb3 {[%emt 0:00:05]} d6 {[%emt 0:00:04]} 8. c3 {[%emt 0:00:14]} O-O {[%emt 0:00:06]} 9. h3 {[%emt 0:00:09]} Bb7 {[%emt 0:00:07]} 10. d4 {[%emt 0:00:13]} Nd7 {[%emt 0:00:05]} 11. Nbd2 {[%emt 0:00:41]} exd4 {[%emt 0:00:08]} 12. cxd4 {[%emt 0:00:07]} Bf6 {[%emt 0:00:03]} 13. Nf1 {[%emt 0:00:14]} Na5 {[%emt 0:00:09]} 14. Bc2 {[%emt 0:00:09]} Re8 {[%emt 0:00:05]} 15. N1h2 {[%emt 0:01:42]} c5 {[%emt 0:00:36]} 16. d5 {[%emt 0:04:24]} Nc4 {[%emt 0:01:12]} 17. Rb1 {[%emt 0:01:09]} Nce5 {[%emt 0:00:35]} 18. Nxe5 {[%emt 0:01:52]} Nxe5 {[%emt 0:00:18]} 19. f4 {[%emt 0:01:38]} Ng6 {[%emt 0:00:05]} 20. Nf3 {[%emt 0:09:05]} a5 {[%emt 0:09:02]} 21. a4 {[%emt 0:02:03]} b4 {[%emt 0:00:05]} 22. Bd3 {[%emt 0:02:45]} Bh4 {[%emt 0:05:18]} 23. Nxh4 {[%emt 0:14:02]} Qxh4 {[%emt 0:00:06]} 24. f5 {[%emt 0:01:09]} Nf4 {[%emt 0:06:47]} 25. Bxf4 {[%emt 0:01:02]} Qxf4 {[%emt 0:00:03]} 26. Qf3 {[%emt 0:02:46]} Qe5 {[%emt 0:00:55]} 27. b3 {[%emt 0:01:31]} Re7 {[%emt 0:02:20]} 28. Rbd1 {[%emt 0:05:55]} Qf6 {[%emt 0:04:43]} 29. Bb5 {[%emt 0:05:41]} Re5 {[%emt 0:00:24]} 30. Kh2 {[%emt 0:01:35]} Bc8 {[%emt 0:00:24]} 31. g4 {[%emt 0:01:18]} h6 {[%emt 0:02:44]} 32. Qg3 {[%emt 0:00:46]} Qe7 {[%emt 0:00:42]} 33. Rd2 {[%emt 0:04:42]} Ba6 {[%emt 0:04:41]} 34. Bxa6 {[%emt 0:00:38]} Rxa6 {[%emt 0:00:03]} 35. Rde2 {[%emt 0:00:20]} Ra8 {[%emt 0:00:33]} 36. h4 {[%emt 0:00:46]} c4 {[%emt 0:07:27]} 37. bxc4 {[%emt 0:01:32]} Rc8 {[%emt 0:00:10]} 38. g5 {[%emt 0:01:50]} hxg5 {[%emt 0:02:47]} 39. hxg5 {[%emt 0:00:10]} Rxc4 {[%emt 0:00:07]} 40. f6 {[%emt 0:03:32]} Qe8 {[%emt 0:05:30]} 41. Qh4 {[%emt 0:08:19]} b3 {[%emt 0:06:33]} 42. Kh1 {[%emt 0:01:47]} Rc2 {[%emt 0:00:23]} 43. Re3 {[%emt 0:00:49]} Qc8 {[%emt 0:05:33]} 44. Rh3 {[%emt 0:03:15]} Qxh3+ {[%emt 0:00:05]} 45. Qxh3 {[%emt 0:00:09]} Rxg5 {[%emt 0:00:01]} 46. Qxb3 {[%emt 0:03:07]} Rf2 {[%emt 0:00:03]} 47. Qb8+ {[%emt 0:05:05]} Kh7 {[%emt 0:00:04]} 48. fxg7 {[%emt 0:00:12]} Kxg7 {[%emt 0:00:03]} 49. Rg1 {[%emt 0:00:22]} 1-0

[Event "8th RTU Open 2018"]
[Site "Riga"]
[Date "2018.08.08"]
[Round "4"]
[White "Semjonovs, Ilja"]
[Black "Carlsson, Pontus"]
[Result "0-1"]
[ECO "C11"]
[WhiteElo "2242"]
[BlackElo "2442"]
[Annotator "NA RC"]
[PlyCount "88"]
[EventDate "2018.08.06"]
[EventType "swiss"]
[EventCountry "LAT"]
[SourceTitle "playchess.com"]
[Source "ChessBase"]
[SourceQuality "1"]
[TimeControl "5400+30"]

1. e4 e6 {[%emt 0:03:38]} 2. d4 {[%emt 0:00:00]} d5 {[%emt 0:00:22]} 3. Nc3 {[%emt 0:00:00]} Nf6 {[%emt 0:00:29]} 4. e5 {[%emt 0:00:17]} Nfd7 {[%emt 0:00:07]} 5. f4 {[%emt 0:00:03]} c5 {[%emt 0:00:05]} 6. Nf3 {[%emt 0:00:04]} Nc6 {[%emt 0:00:09]} 7. Be3 {[%emt 0:00:08]} Be7 {[%emt 0:01:14]} 8. Qd2 {[%emt 0:00:25]} O-O {[%emt 0:01:15]} 9. Be2 {[%emt 0:04:01]} b6 {[%emt 0:00:57]} 10. O-O {[%emt 0:01:02]} f5 {[%emt 0:00:13]} 11. dxc5 {[%emt 0:34:18]} Nxc5 {[%emt 0:01:00]} 12. Nb5 {[%emt 0:06:16]} Ne4 {[%emt 0:20:12]} 13. Qd1 {[%emt 0:07:07]} Bc5 {[%emt 0:11:06]} 14. Nbd4 {[%emt 0:05:27]} Qe7 {[%emt 0:08:11]} 15. c3 {[%emt 0:15:09]} Bb7 {[%emt 0:07:58]} 16. Bd3 {[%emt 0:03:58]} Rac8 {[%emt 0:14:12]} 17. Qe2 {[%emt 0:01:59]} Na5 {[%emt 0:01:31]} 18. Rfd1 {[%emt 0:09:56]} Rfd8 {[%emt 0:05:50]} 19. Kh1 {[%emt 0:01:40]} Nc4 {[%emt 0:00:44]} 20. Bg1 {[%emt 0:00:16]} a6 {[%emt 0:01:46]} 21. Rac1 {[%emt 0:02:09]} b5 {[%emt 0:01:14]} 22. b3 {[%emt 0:01:51]} Na5 {[%emt 0:01:46]} 23. b4 {[%emt 0:01:08]} Bxd4 {[%emt 0:00:11]} 24. Bxd4 {[%emt 0:00:06]} Nc4 {[%emt 0:00:08]} 25. Bxc4 {[%emt 0:04:07]} dxc4 {[%emt 0:00:14]} 26. Nd2 {[%emt 0:00:31]} Rxd4 {[%emt 0:01:55]} 27. cxd4 {[%emt 0:00:26]} Qxb4 {[%emt 0:00:52]} 28. Nf3 {[%emt 0:01:05]} Bd5 {[%emt 0:05:00]} 29. Ng5 {[%emt 0:00:29]} Nxg5 {[%emt 0:01:40]} 30. fxg5 {[%emt 0:00:05]} Qe7 {[%emt 0:00:04]} 31. Qd2 {[%emt 0:00:13]} b4 {[%emt 0:00:11]} 32. h4 {[%emt 0:00:54]} c3 {[%emt 0:01:49]} 33. Qc2 {[%emt 0:00:14]} h6 {[%emt 0:00:50]} 34. Qa4 {[%emt 0:00:06]} hxg5 {[%emt 0:00:21]} 35. Qxa6 {[%emt 0:00:29]} Ra8 {[%emt 0:06:56]} 36. Qd6 {[%emt 0:00:35]} Qb7 {[%emt 0:00:12]} 37. Rc2 {[%emt 0:00:35]} gxh4 {[%emt 0:00:18]} 38. Kh2 {[%emt 0:00:54]} Qb5 {[%emt 0:02:53]} 39. Qc5 {[%emt 0:00:46]} Qa4 {[%emt 0:00:49]} 40. Rdc1 {[%emt 0:00:31]} Qa5 {[%emt 0:00:59]} 41. Rb1 {[%emt 0:00:30]} Qxc5 {[%emt 0:00:19]} 42. dxc5 {[%emt 0:00:12]} Be4 {[%emt 0:00:09]} 43. Rbc1 {[%emt 0:00:31]} Bxc2 {[%emt 0:00:04]} 44. Rxc2 {[%emt 0:00:02]} Ra5 {[%emt 0:00:23]} 0-1

[Event "8th RTU Open 2018"]
[Site "Riga"]
[Date "2018.08.08"]
[Round "4"]
[White "Chibukhchyan, Erik"]
[Black "Gorodetzky, David"]
[Result "1/2-1/2"]
[ECO "C07"]
[WhiteElo "2214"]
[BlackElo "2451"]
[Annotator "ChessBase"]
[PlyCount "64"]
[EventDate "2018.08.06"]
[EventType "swiss"]
[EventCountry "LAT"]
[SourceTitle "playchess.com"]
[Source "ChessBase"]
[SourceQuality "1"]
[TimeControl "5400+30"]

1. e4 {[%emt 0:00:00]} e6 {[%emt 0:00:43]} 2. d4 {[%emt 0:00:00]} d5 {[%emt 0:00:14]} 3. Nd2 {[%emt 0:00:00]} c5 {[%emt 0:04:21]} 4. dxc5 {[%emt 0:00:00]} Nf6 {[%emt 0:13:10]} 5. Bd3 {[%emt 0:00:46]} dxe4 {[%emt 0:05:59]} 6. Nxe4 {[%emt 0:00:07]} Nxe4 {[%emt 0:02:04]} 7. Bxe4 {[%emt 0:00:03]} Qxd1+ {[%emt 0:00:09]} 8. Kxd1 {[%emt 0:00:03]} Bxc5 {[%emt 0:00:08]} 9. Ke2 {[%emt 0:01:08]} Nd7 {[%emt 0:00:43]} 10. Nf3 {[%emt 0:01:39]} a6 {[%emt 0:17:47]} 11. c3 {[%emt 0:09:47]} Nf6 {[%emt 0:01:32]} 12. Bc2 {[%emt 0:03:23]} b6 {[%emt 0:05:36]} 13. Bf4 {[%emt 0:10:35]} Bb7 {[%emt 0:02:17]} 14. Rad1 {[%emt 0:02:42]} Rc8 {[%emt 0:03:13]} 15. Rhe1 {[%emt 0:01:29]} Ke7 {[%emt 0:10:28]} 16. Rd2 {[%emt 0:10:50]} Rhd8 {[%emt 0:06:38]} 17. Red1 {[%emt 0:00:08]} Rxd2+ {[%emt 0:05:25]} 18. Rxd2 {[%emt 0:00:02]} b5 {[%emt 0:04:34]} 19. Rd1 {[%emt 0:04:36]} Bd5 {[%emt 0:02:31]} 20. Bb3 {[%emt 0:03:42]} h6 {[%emt 0:05:08]} 21. h3 {[%emt 0:02:46]} Bd6 {[%emt 0:03:47]} 22. Bxd6+ {[%emt 0:00:47]} Kxd6 {[%emt 0:00:01]} 23. Bxd5 {[%emt 0:02:16]} Nxd5 {[%emt 0:00:19]} 24. a3 e5 25. g3 {[%emt 0:01:22]} Ke6 {[%emt 0:00:39]} 26. Ne1 {[%emt 0:01:03]} f5 {[%emt 0:01:30]} 27. Kd2 {[%emt 0:04:15]} a5 {[%emt 0:00:40]} 28. Nc2 {[%emt 0:00:19]} h5 {[%emt 0:02:10]} 29. h4 {[%emt 0:02:24]} g6 {[%emt 0:00:49]} 30. Ke2 {[%emt 0:01:05]} f4 {[%emt 0:01:42]} 31. Ne1 {[%emt 0:05:12]} Rc4 {[%emt 0:00:30]} 32. Nf3 fxg3 {[%emt 0:00:28]} 1/2-1/2

[Event "8th RTU Open 2018"]
[Site "Riga"]
[Date "2018.08.08"]
[Round "4"]
[White "Kukk, Sander"]
[Black "Jablonicky, Martin"]
[Result "1-0"]
[ECO "A01"]
[WhiteElo "2194"]
[BlackElo "2361"]
[Annotator "NA"]
[PlyCount "39"]
[EventDate "2018.08.06"]
[EventType "swiss"]
[EventCountry "LAT"]
[SourceTitle "playchess.com"]
[Source "ChessBase"]
[SourceQuality "1"]
[TimeControl "5400+30"]

1. b3 {[%emt 0:00:00]} e5 {[%emt 0:11:51]} 2. Bb2 {[%emt 0:00:00]} d6 {[%emt 0:00:05]} 3. e3 {[%emt 0:00:09]} g6 {[%emt 0:00:15]} 4. d4 {[%emt 0:01:45]} Nd7 {[%emt 0:00:03]} 5. dxe5 {[%emt 0:01:28]} dxe5 {[%emt 0:00:04]} 6. Nf3 {[%emt 0:01:34]} Bg7 {[%emt 0:00:06]} 7. Bc4 {[%emt 0:01:16]} Ne7 {[%emt 0:00:52]} 8. Bxf7+ {[%emt 0:01:17]} Kxf7 {[%emt 0:00:10]} 9. Ng5+ {[%emt 0:00:03]} Kf6 {[%emt 0:16:11]} 10. f4 {[%emt 0:21:11]} h6 {[%emt 0:18:54]} 11. fxe5+ {[%emt 0:10:38]} Nxe5 {[%emt 0:00:02]} 12. Bxe5+ {[%emt 0:00:30]} Kxg5 {[%emt 0:00:30]} 13. Qf3 {[%emt 0:10:01]} Bg4 {[%emt 0:00:10]} 14. Qf4+ {[%emt 0:00:07]} Kh5 {[%emt 0:00:02]} 15. h3 {[%emt 0:00:09]} Qd1+ {[%emt 0:01:39]} 16. Kf2 {[%emt 0:00:05]} Qe2+ {[%emt 0:02:43]} 17. Kg1 {[%emt 0:00:13]} g5 {[%emt 0:03:12]} 18. hxg4+ {[%emt 0:00:42]} Kg6 {[%emt 0:00:01]} 19. Qe4+ {[%emt 0:00:09]} Kf7 {[%emt 0:00:01]} 20. Nc3 {[%emt 0:00:16]} 1-0

[Event "8th RTU Open 2018"]
[Site "Riga"]
[Date "2018.08.08"]
[Round "4"]
[White "Breivik, Lars H"]
[Black "Dedebas, Emre Emin"]
[Result "1/2-1/2"]
[ECO "A14"]
[WhiteElo "2168"]
[BlackElo "2353"]
[Annotator "NA"]
[PlyCount "59"]
[EventDate "2018.08.06"]
[EventType "swiss"]
[EventCountry "LAT"]
[SourceTitle "playchess.com"]
[Source "ChessBase"]
[SourceQuality "1"]
[TimeControl "5400+30"]

1. c4 {[%emt 0:04:45]} Nf6 {[%emt 0:01:44]} 2. g3 {[%emt 0:00:09]} e6 {[%emt 0:01:01]} 3. Bg2 {[%emt 0:00:13]} d5 {[%emt 0:00:12]} 4. Nf3 {[%emt 0:00:39]} Be7 {[%emt 0:00:12]} 5. O-O {[%emt 0:00:20]} O-O {[%emt 0:00:13]} 6. b3 {[%emt 0:01:02]} b6 {[%emt 0:01:08]} 7. Bb2 {[%emt 0:02:44]} Bb7 {[%emt 0:01:14]} 8. e3 {[%emt 0:01:04]} Nbd7 {[%emt 0:00:10]} 9. Nc3 {[%emt 0:01:22]} Ne4 {[%emt 0:04:12]} 10. Ne2 {[%emt 0:08:19]} Bf6 {[%emt 0:03:39]} 11. Bxf6 {[%emt 0:12:59]} Ndxf6 {[%emt 0:08:06]} 12. d3 {[%emt 0:02:24]} Nd6 {[%emt 0:01:24]} 13. cxd5 {[%emt 0:19:00]} exd5 {[%emt 0:15:10]} 14. Rc1 {[%emt 0:07:30]} c5 {[%emt 0:09:20]} 15. d4 {[%emt 0:06:22]} c4 {[%emt 0:02:56]} 16. Ne5 {[%emt 0:00:26]} b5 {[%emt 0:01:27]} 17. a4 {[%emt 0:17:16]} a6 {[%emt 0:00:18]} 18. Rb1 {[%emt 0:00:43]} Rb8 {[%emt 0:08:13]} 19. axb5 {[%emt 0:04:18]} axb5 {[%emt 0:00:13]} 20. Qd2 {[%emt 0:00:08]} Nfe4 {[%emt 0:02:16]} 21. Qb4 {[%emt 0:00:07]} f6 {[%emt 0:01:04]} 22. Nf3 {[%emt 0:00:07]} Qe7 {[%emt 0:07:22]} 23. Nd2 {[%emt 0:01:58]} Nxd2 {[%emt 0:12:41]} 24. Qxd2 {[%emt 0:00:05]} Ne4 {[%emt 0:00:21]} 25. Qa5 {[%emt 0:05:24]} Bc6 {[%emt 0:03:22]} 26. bxc4 {[%emt 0:00:47]} dxc4 {[%emt 0:01:26]} 27. Qb4 {[%emt 0:00:30]} Qd7 28. Rfd1 Ng5 29. d5 Ba8 30. Nf4 1/2-1/2

[Event "8th RTU Open 2018"]
[Site "Riga"]
[Date "2018.08.08"]
[Round "4"]
[White "Jazdanovs, Aleksandrs"]
[Black "Oboladze, Luka"]
[Result "1/2-1/2"]
[ECO "B47"]
[WhiteElo "2042"]
[BlackElo "2349"]
[Annotator "NA"]
[PlyCount "59"]
[EventDate "2018.08.06"]
[EventType "swiss"]
[EventCountry "LAT"]
[SourceTitle "playchess.com"]
[Source "ChessBase"]
[SourceQuality "1"]
[TimeControl "5400+30"]

1. e4 c5 2. Nf3 e6 3. d4 cxd4 4. Nxd4 Nc6 5. Nc3 Qc7 6. g3 a6 7. Bg2 Nf6 8. O-O Be7 9. Nxc6 bxc6 10. Na4 d6 11. c4 O-O 12. f4 e5 13. Be3 Rb8 14. h3 exf4 15. Bxf4 Nd7 16. Qd4 Ne5 17. b3 Bf6 18. Qd2 Be6 19. Rad1 Rbd8 20. Nb2 Ng6 21. Bg5 Bxg5 22. Qxg5 f6 23. Qe3 Qa5 24. Nd3 Ne5 25. Rf2 Bf7 26. Rfd2 Rfe8 27. Nxe5 Qxe5 28. Qf4 Qxf4 29. gxf4 Bh5 30. Rc1 1/2-1/2

[Event "8th RTU Open 2018"]
[Site "Riga"]
[Date "2018.08.09"]
[Round "6"]
[White "Kulaots, Kaido"]
[Black "Kreisl, Robert"]
[Result "0-1"]
[ECO "A28"]
[WhiteElo "2554"]
[BlackElo "2404"]
[Annotator "ChessBase"]
[PlyCount "111"]
[EventDate "2018.08.06"]
[EventType "swiss"]
[EventCountry "LAT"]
[SourceTitle "playchess.com"]
[Source "ChessBase"]
[SourceQuality "1"]
[TimeControl "5400+30"]

1. c4 {[%emt 0:00:00]} e5 {[%emt 0:03:12]} 2. Nc3 {[%emt 0:00:27]} Nc6 {[%emt 0:00:04]} 3. e3 {[%emt 0:03:58]} Nf6 {[%emt 0:00:37]} 4. Nf3 {[%emt 0:01:10]} Bb4 {[%emt 0:00:24]} 5. Qc2 {[%emt 0:00:18]} Bxc3 {[%emt 0:06:32]} 6. Qxc3 {[%emt 0:00:59]} Qe7 {[%emt 0:00:07]} 7. b3 {[%emt 0:01:49]} d5 {[%emt 0:01:46]} 8. cxd5 {[%emt 0:05:36]} Nxd5 {[%emt 0:00:08]} 9. Qb2 {[%emt 0:00:22]} O-O {[%emt 0:00:50]} 10. Bc4 {[%emt 0:06:49]} Rd8 {[%emt 0:05:30]} 11. O-O {[%emt 0:07:53]} e4 {[%emt 0:08:21]} 12. Ne1 {[%emt 0:01:37]} Ne5 {[%emt 0:00:53]} 13. f3 {[%emt 0:16:01]} exf3 {[%emt 0:17:40]} 14. Nxf3 {[%emt 0:01:22]} Nxc4 {[%emt 0:01:04]} 15. bxc4 {[%emt 0:00:05]} Nb4 {[%emt 0:00:30]} 16. Qc3 {[%emt 0:11:28]} Nd3 {[%emt 0:02:25]} 17. Ba3 {[%emt 0:00:09]} c5 {[%emt 0:00:05]} 18. Ne1 {[%emt 0:03:07]} Qe4 {[%emt 0:04:22]} 19. Nxd3 {[%emt 0:00:03]} Rxd3 {[%emt 0:02:28]} 20. Qc1 {[%emt 0:00:04]} b6 {[%emt 0:01:25]} 21. Bb2 {[%emt 0:00:04]} Bb7 {[%emt 0:00:33]} 22. Rf2 {[%emt 0:00:05]} Rad8 {[%emt 0:00:28]} 23. Bc3 {[%emt 0:11:00]} R8d6 {[%emt 0:01:42]} 24. Qf1 {[%emt 0:00:05]} Rg6 {[%emt 0:00:43]} 25. Re1 {[%emt 0:00:14]} Qxc4 {[%emt 0:06:57]} 26. e4 {[%emt 0:00:47]} Ba6 {[%emt 0:01:17]} 27. Rfe2 {[%emt 0:10:37]} h6 {[%emt 0:03:47]} 28. Qf5 {[%emt 0:00:52]} Qe6 {[%emt 0:00:55]} 29. Rf2 {[%emt 0:00:38]} Bb7 {[%emt 0:00:35]} 30. a3 {[%emt 0:00:24]} Rd7 {[%emt 0:01:34]} 31. Re3 {[%emt 0:01:18]} Re7 {[%emt 0:00:26]} 32. h3 {[%emt 0:02:43]} Bxe4 {[%emt 0:04:04]} 33. Qf4 {[%emt 0:01:33]} c4 {[%emt 0:00:41]} 34. Rfe2 {[%emt 0:00:15]} f5 {[%emt 0:00:13]} 35. Kh2 {[%emt 0:00:05]} h5 {[%emt 0:04:47]} 36. Qh4 {[%emt 0:03:04]} Qf7 {[%emt 0:05:10]} 37. Rf2 {[%emt 0:01:02]} Ree6 {[%emt 0:00:45]} 38. Qd8+ {[%emt 0:01:53]} Qf8 {[%emt 0:01:25]} 39. Qh4 {[%emt 0:01:04]} Qd6+ {[%emt 0:00:42]} 40. Kg1 {[%emt 0:00:35]} Bd3 {[%emt 0:08:46]} 41. Qxh5 {[%emt 0:02:15]} Rxe3 {[%emt 0:01:33]} 42. dxe3 {[%emt 0:00:05]} Qc6 {[%emt 0:00:33]} 43. Qh4 {[%emt 0:03:59]} Be4 {[%emt 0:01:12]} 44. Qd8+ {[%emt 0:00:54]} Kh7 {[%emt 0:00:09]} 45. Qh4+ {[%emt 0:00:22]} Kg8 {[%emt 0:00:01]} 46. Qd8+ {[%emt 0:00:06]} Kh7 {[%emt 0:00:47]} 47. Qh4+ {[%emt 0:00:46]} Rh6 {[%emt 0:02:01]} 48. Qe7 {[%emt 0:00:06]} Qg6 {[%emt 0:02:06]} 49. Be5 {[%emt 0:02:00]} Rh5 {[%emt 0:00:49]} 50. Kh2 {[%emt 0:00:18]} Rg5 {[%emt 0:00:59]} 51. g3 {[%emt 0:00:10]} Qh5 {[%emt 0:00:29]} 52. Qd8 {[%emt 0:02:43]} Rg6 {[%emt 0:00:01]} 53. Bc3 {[%emt 0:00:39]} b5 {[%emt 0:00:43]} 54. h4 {[%emt 0:00:28]} Qg4 {[%emt 0:00:22]} 55. Be5 {[%emt 0:00:33]} c3 {[%emt 0:00:09]} 56. Qc7 0-1

[Event "8th RTU Open 2018"]
[Site "Riga"]
[Date "2018.08.09"]
[Round "6"]
[White "Maiorov, Nikita"]
[Black "Manafov, Vugar Gulam"]
[Result "1-0"]
[ECO "E32"]
[WhiteElo "2504"]
[BlackElo "2215"]
[Annotator "ChessBase"]
[PlyCount "129"]
[EventDate "2018.08.06"]
[EventType "swiss"]
[EventCountry "LAT"]
[SourceTitle "playchess.com"]
[Source "ChessBase"]
[SourceQuality "1"]
[TimeControl "5400+30"]

1. d4 {[%emt 0:02:32]} Nf6 {[%emt 0:00:12]} 2. c4 {[%emt 0:00:25]} e6 {[%emt 0:00:04]} 3. Nc3 {[%emt 0:00:07]} Bb4 {[%emt 0:00:07]} 4. Qc2 {[%emt 0:00:04]} O-O {[%emt 0:00:05]} 5. a3 {[%emt 0:00:05]} Bxc3+ {[%emt 0:00:06]} 6. Qxc3 {[%emt 0:00:04]} d6 {[%emt 0:00:04]} 7. Nf3 {[%emt 0:07:11]} Nbd7 {[%emt 0:00:06]} 8. g3 {[%emt 0:01:01]} b6 {[%emt 0:04:22]} 9. Bg2 {[%emt 0:00:37]} Bb7 {[%emt 0:00:07]} 10. O-O {[%emt 0:00:10]} a5 {[%emt 0:00:15]} 11. b3 {[%emt 0:00:06]} Qe7 {[%emt 0:00:41]} 12. Bb2 {[%emt 0:00:08]} Ne4 {[%emt 0:00:12]} 13. Qc2 {[%emt 0:00:07]} f5 {[%emt 0:00:57]} 14. Rad1 {[%emt 0:04:19]} Ng5 {[%emt 0:04:31]} 15. d5 {[%emt 0:07:19]} Nxf3+ {[%emt 0:01:55]} 16. Bxf3 {[%emt 0:00:15]} e5 {[%emt 0:00:13]} 17. e3 {[%emt 0:00:08]} e4 {[%emt 0:01:48]} 18. Bg2 {[%emt 0:03:28]} Ne5 {[%emt 0:00:22]} 19. Kh1 {[%emt 0:00:20]} Rf6 {[%emt 0:02:33]} 20. f3 {[%emt 0:11:14]} exf3 {[%emt 0:04:44]} 21. Bxf3 {[%emt 0:00:04]} Rh6 {[%emt 0:00:24]} 22. Be2 {[%emt 0:02:01]} Bc8 {[%emt 0:07:35]} 23. Bc1 {[%emt 0:11:31]} Rf6 {[%emt 0:00:54]} 24. Rf2 {[%emt 0:00:32]} Bd7 {[%emt 0:10:31]} 25. Rdf1 {[%emt 0:02:06]} Rf7 {[%emt 0:00:40]} 26. Bh5 {[%emt 0:00:49]} g6 {[%emt 0:00:37]} 27. Be2 {[%emt 0:00:11]} c6 {[%emt 0:00:01]} 28. Bb2 {[%emt 0:04:21]} cxd5 {[%emt 0:01:53]} 29. cxd5 {[%emt 0:01:21]} Rc8 {[%emt 0:00:16]} 30. Qd1 {[%emt 0:00:06]} a4 {[%emt 0:00:19]} 31. e4 {[%emt 0:12:25]} Rcf8 {[%emt 0:06:19]} 32. Qd4 {[%emt 0:07:16]} fxe4 {[%emt 0:01:10]} 33. Rxf7 {[%emt 0:00:18]} Rxf7 {[%emt 0:00:02]} 34. Rxf7 {[%emt 0:00:06]} Qxf7 {[%emt 0:00:16]} 35. Qxb6 {[%emt 0:00:59]} Qf8 {[%emt 0:05:21]} 36. Bxe5 {[%emt 0:02:29]} dxe5 {[%emt 0:00:11]} 37. bxa4 {[%emt 0:00:20]} Bxa4 {[%emt 0:01:01]} 38. Qe6+ {[%emt 0:02:58]} Qf7 {[%emt 0:00:05]} 39. Qxe5 {[%emt 0:04:14]} Bd1 {[%emt 0:00:31]} 40. Qb8+ {[%emt 0:00:07]} Kg7 {[%emt 0:00:04]} 41. Qb2+ {[%emt 0:00:08]} Kg8 {[%emt 0:00:10]} 42. Bc4 {[%emt 0:04:07]} Bf3+ {[%emt 0:03:06]} 43. Kg1 {[%emt 0:00:04]} Qa7+ {[%emt 0:00:09]} 44. Kf1 {[%emt 0:00:12]} Qf7 {[%emt 0:05:48]} 45. Qb8+ {[%emt 0:01:00]} Kg7 {[%emt 0:00:01]} 46. Qe5+ {[%emt 0:00:10]} Kg8 {[%emt 0:00:21]} 47. Qe6 {[%emt 0:00:35]} e3 {[%emt 0:01:19]} 48. d6 {[%emt 0:04:05]} Qxe6 {[%emt 0:00:32]} 49. Bxe6+ {[%emt 0:00:04]} Kf8 {[%emt 0:00:06]} 50. a4 {[%emt 0:00:04]} Ke8 {[%emt 0:00:13]} 51. a5 {[%emt 0:00:05]} Kd8 {[%emt 0:00:03]} 52. a6 {[%emt 0:00:15]} g5 {[%emt 0:00:08]} 53. g4 {[%emt 0:01:43]} h6 {[%emt 0:00:12]} 54. Ke1 {[%emt 0:00:05]} Bc6 {[%emt 0:00:13]} 55. Bf5 {[%emt 0:01:33]} Bf3 {[%emt 0:00:10]} 56. Kf1 {[%emt 0:00:45]} Bd5 {[%emt 0:00:19]} 57. Ke2 {[%emt 0:00:23]} Bc4+ {[%emt 0:00:05]} 58. Bd3 {[%emt 0:01:10]} Bxa6 {[%emt 0:00:10]} 59. Bxa6 {[%emt 0:00:03]} Kd7 {[%emt 0:00:06]} 60. Kxe3 {[%emt 0:00:05]} Kxd6 {[%emt 0:00:05]} 61. Ke4 {[%emt 0:00:12]} h5 {[%emt 0:01:15]} 62. h3 {[%emt 0:00:19]} Ke6 {[%emt 0:00:04]} 63. Bb5 {[%emt 0:00:09]} Kd6 {[%emt 0:00:06]} 64. Kf5 {[%emt 0:00:06]} hxg4 {[%emt 0:00:05]} 65. hxg4 {[%emt 0:00:04]} 1-0